Cogmind - Beta 15 @@@ ROGUE MODE // 2025.09.23 @ 23:15:58 Player: kiul Result: Core destroyed Performance ------------- Evolutions (3) 1500 Regions Visited (5) 1000 Robots Destroyed (77) 385 Value Destroyed (2407) 2407 Prototype IDs (9) 180 Alien Tech Used (0) 0 Bonus (500) 500 TOTAL SCORE: 5972 Bonus ------- Entered DSFs 500 Cogmind --------- Core Integrity 0/700 Matter 104/300 Energy 430/430 System Corruption 3% Temperature Critical (567) Movement Walking (186) Ox1 Location -7/DSF Parts ------- > --- POWER (2) -------- Nuclear Core Reinforced Deuterium Engine > --- PROPULSION (3) --- VSS Leg Improved Carbon-fiber Leg Improved Carbon-fiber Leg > --- UTILITY (5) ------ Advanced Heat Sink Large Storage Unit Advanced Visual Processing Unit Core Analyzer System Shield > --- WEAPON (3) ------- Improved KE Penetrator Improved KE Penetrator > --- INVENTORY (15) --- Light Nuclear Core Improved Carbon-fiber Leg Melee Analysis Suite Insulated Plating Light Assault Rifle Enhanced Autogun Enhanced Autogun Enhanced Autogun Gauss Rifle Improved KE Penetrator Peak State ------------ > --- POWER ------------ Nuclear Core Light Nuclear Core > --- PROPULSION ------- VSS Leg Improved Carbon-fiber Leg Improved Carbon-fiber Leg > --- UTILITY ---------- Advanced Heat Sink Large Storage Unit Advanced Visual Processing Unit Core Analyzer System Shield > --- WEAPON ----------- Improved KE Penetrator Improved KE Penetrator Improved KE Penetrator > --- INVENTORY -------- VSS Leg VSS Leg Improved Carbon-fiber Leg Trap Scanner Melee Analysis Suite Small Laser Light Assault Rifle Enhanced Autogun Enhanced Autogun Enhanced Autogun Gauss Rifle Improved KE Penetrator [Rating: 58] Favorites ----------- Power Improved Ion Engine Engine Improved Ion Engine Power Core Light Nuclear Core Propulsion Aluminum Leg Leg Aluminum Leg Utility Large Storage Unit Device Improved Heat Sink Storage Large Storage Unit Processor Advanced Visual Processing Unit Hackware Hacking Suite Protection Improved Propulsion Shielding Weapon Light Assault Rifle Energy Gun Small Laser Energy Cannon Beam Cannon Ballistic Gun Light Assault Rifle Ballistic Cannon Light Cannon Launcher Mini Grenade Launcher Impact Weapon Great Maul Build | -11 -10 -9 -8 -7 -7 ------- Run | Yrd Mat Mat Mat Fac DSF Slots Evolved 6 | . . 2 2 2 . Power 1 | . . . 1 . . Propulsion 1 | . . 1 . . . Utility 3 | . . 1 1 1 . Weapon 1 | . . . . 1 . Parts Attached 77 | 6 7 16 26 5 17 Power 17 | 1 1 3 7 1 4 Engine 12 | 1 1 3 4 1 2 Core 5 | . . . 3 . 2 Reactor . | . . . . . . Propulsion 19 | 2 3 5 3 . 6 Treads . | . . . . . . Leg 19 | 2 3 5 3 . 6 Wheel . | . . . . . . Hover . | . . . . . . Flight . | . . . . . . Utility 16 | 1 2 4 5 2 2 Device 4 | . . . 2 2 . Storage 4 | 1 1 1 1 . . Processor 2 | . . . 1 . 1 Hackware 2 | . 1 . . . 1 Protection 4 | . . 3 1 . . Artifact . | . . . . . . Weapon 25 | 2 1 4 11 2 5 Energy Gun 9 | . 1 1 6 1 . Energy Cannon 2 | . . 1 1 . . Ballistic Gun 11 | 2 . . 4 . 5 Ballistic Cannon 1 | . . 1 . . . Launcher 1 | . . 1 . . . Special Weapon . | . . . . . . Impact Weapon 1 | . . . . 1 . Slashing Weapon . | . . . . . . Piercing Weapon . | . . . . . . Special Melee Weapon . | . . . . . . Unidentified Prototypes 7 | . . 4 2 . 1 Corrupted Parts 1 | . . . . . 1 System Corruption 3 | . . . . . 3 Parts Lost 35 | . 3 6 11 . 15 Power 10 | . 2 . 4 . 4 Propulsion 8 | . . 3 1 . 4 Utility 4 | . . . 2 . 2 Weapon 13 | . 1 3 4 . 5 Highest Loss Streak 10 | . 1 4 5 . 10 To Critical Strikes . | . . . . . . Average Backups 11 | 1 8 13 14 13 10 Power 3 | . 2 4 4 2 . Propulsion 1 | . . 2 1 1 1 Utility 2 | . 1 3 3 4 2 Weapon 4 | . 3 3 5 6 5 Tool/Special . | . . . . . . Unused Backups 10 | . 1 . 5 . 4 Power 2 | . 1 . 1 . . Propulsion . | . . . . . . Utility 4 | . . . 2 . 2 Weapon 4 | . . . 2 . 2 Tool/Special . | . . . . . . Average Slot Usage (%) 88 | . 92 84 94 86 73 Engine 8 | . 13 7 8 9 6 Core 2 | . . . 7 . 2 Leg 26 | . 28 29 26 23 16 Device 2 | . . . 4 7 6 Storage 11 | . 14 11 11 7 7 Processor 2 | . . . 4 7 10 Hackware 9 | . 8 11 9 7 5 Protection 3 | . . 4 5 . . Energy Gun 3 | . 1 4 5 4 1 Energy Cannon 3 | . . 6 3 7 1 Ballistic Gun 9 | . 25 1 6 2 10 Ballistic Cannon 1 | . . 4 . . . Launcher 1 | . . 3 1 . . Peak Build Rating 58 | 6 10 19 31 35 58 Average Rating 18 | 4 8 12 26 33 36 On Entrance 15 | . 6 9 19 25 35 Naked Turns . | . . . . . . Heaviest Build 55 | 13 28 37 43 46 55 Greatest Support 48 | 20 20 33 38 35 48 Greatest Overweight (x) 9 | . 1 2 1 1 9 Average Overweight (x) . | . . . . 1 1 Largest Inventory Capacity 15 | 8 15 15 15 15 15 Average Capacity 13 | 6 11 15 15 15 15 Most Carried 15 | 5 14 15 15 14 13 Average Carried 11 | 2 8 13 14 11 10 Final Capacity 15 | 8 15 15 15 15 15 Final Carried 15 | 2 14 11 15 11 10 Class Distribution -------------------- 60% | Scavenger-Mutant 36% | Mutant 3% | Scavenger-Gunner Dominant Class ---------------- Mutant | -10/Materials Scavenger-Mutant | -9/Materials Scavenger-Mutant | -8/Materials Scavenger-Mutant | -7/Factory Mutant | -7/DSF Resources | -11 -10 -9 -8 -7 -7 ----------- Run | Yrd Mat Mat Mat Fac DSF Matter Collected 1694 | 251 214 231 646 . 352 Remotely . | . . . . . . Salvage Created 2993 | . 615 819 848 . 711 Parts 189 | . 47 41 49 . 52 Haulers Intercepted 7 | . 1 3 3 . . Recyclers Shooed 2 | . 1 1 . . . Parts Field Recycled . | . . . . . . Retrieved Matter . | . . . . . . Parts Self-Destructed . | . . . . . . Prevented . | . . . . . . Kills | -11 -10 -9 -8 -7 -7 ------- Run | Yrd Mat Mat Mat Fac DSF Combat Hostiles Destroyed 61 | . 14 17 15 . 15 Guns 36 | . 13 2 6 . 15 Cannons 18 | . . 13 5 . . AOE 6 | . 1 2 3 . . Classes Destroyed 11 | . 7 2 . . 2 Worker 3 | . 1 . 2 . . Builder 2 | . 1 . 1 . . Hauler 7 | . 1 3 3 . . Recycler 2 | . 1 1 . . . Operator 2 | . 1 1 . . . Swarmer 14 | . 6 . 4 . 4 Grunt 30 | . 8 11 8 . 3 Brawler 1 | . . 1 . . . Sentry 9 | . . 5 3 . 1 Specialist 6 | . . . . . 6 Heavy 1 | . . . . . 1 Best Kill Streak 7 | . 4 6 4 . 7 Combat Bots Only 7 | . 3 6 4 . 7 Max Kills in Single Turn 2 | . 1 2 2 . 2 Gunslinging 1 | . . . . . 1 Exploded 2 | . 1 1 2 . . Melee . | . . . . . . Uniques/NPCs Destroyed . | . . . . . . Combat | -11 -10 -9 -8 -7 -7 -------- Run | Yrd Mat Mat Mat Fac DSF Hostile Shots Fired 524 | . 81 113 133 . 197 Missed 174 | . 28 46 36 . 64 Hits 350 | . 53 67 97 . 133 Melee 2 | . . 2 . . . Projectile 348 | . 53 65 97 . 133 Critical Strikes 12 | . . 2 4 . 6 Actively Blocked 1 | . . . 1 . . Damage Taken 5472 | . 530 981 1469 . 2492 Core 1119 | . 67 170 126 . 756 Absorbed by Shields . | . . . . . . Redirected to Shielding 103 | . . . 103 . . Regen/Repaired (Parts) 378 | . . 130 248 . . Core Remaining (%) 76 | 100 73 57 77 . . Volleys Fired 216 | . 57 56 62 . 41 Largest 3 | . 2 2 2 . 3 Hottest 137 | . 60 90 93 . 137 Shots Fired 393 | . 102 105 96 . 90 Gun 267 | . 102 14 68 . 83 Cannon 109 | . . 77 25 . 7 Launcher 17 | . . 14 3 . . Special . | . . . . . . Kinetic 231 | . 86 39 34 . 72 Thermal 108 | . 16 42 36 . 14 Explosive 17 | . . 14 3 . . Electromagnetic 37 | . . 10 23 . 4 Robot Hit Streak 11 | . 6 8 11 . 6 Robot Miss Streak 7 | . 7 4 4 . 3 Penetration Max 1 | . . . . . 1 Secondary Targets 6 | . 1 1 . . 4 Max Gunslinging Chain 1 | . 1 1 . . 1 Shots Hit Robots 246 | . 57 72 59 . 58 Core Hits 132 | . 30 34 43 . 25 Critical Kills 1 | . . . . . 1 Critical Parts Destroyed . | . . . . . . Critical Strikes 4 | . . 2 1 . 1 Destroy 1 | . . . . . 1 Blast 2 | . . 2 . . . Corrupt 1 | . . . 1 . . Melee Attacks . | . . . . . . Impact . | . . . . . . Slashing . | . . . . . . Piercing . | . . . . . . Sneak Attacks . | . . . . . . Combat Hostiles . | . . . . . . Follow-up Attacks . | . . . . . . Damage Inflicted 5266 | . 641 1524 1605 . 1496 Guns 2909 | . 619 136 771 . 1383 Cannons 1350 | . . 888 349 . 113 Explosions 1002 | . 22 500 480 . . Melee . | . . . . . . Ramming 5 | . . . 5 . . Kinetic 2502 | . 539 394 356 . 1213 Thermal 1332 | . 80 526 512 . 214 Explosive 886 | . . 500 386 . . Electromagnetic 541 | . 22 104 346 . 69 Impact . | . . . . . . Slashing . | . . . . . . Piercing . | . . . . . . Highest Corruption 3 | . . . 3 . 3 Average Corruption 3 | . . . 3 . 3 Corruption Purged . | . . . . . . Corruption Blocked . | . . . . . . Effects 26 | . . . 20 . 6 Message Errors 6 | . . . 4 . 2 Matter Fused 5 | . . . 4 . 1 Heat Flow Errors 4 | . . . 3 . 1 Energy Discharges 2 | . . . 2 . . Parts Rejected 1 | . . . 1 . . Parts Fused 1 | . . . . . 1 Data Loss (minor) 5 | . . . 4 . 1 Data Loss (major) 1 | . . . 1 . . Alerts 1 | . . . 1 . . Overload Shots . | . . . . . . Overflow Damage 15 | . . . 15 . . Projectiles . | . . . . . . Explosions 15 | . . . 15 . . Melee . | . . . . . . Knockbacks 2 | . . 2 . . . Impact . | . . . . . . Kinetic 2 | . . 2 . . . Secondary . | . . . . . . Self-Inflicted Damage 238 | . 55 101 82 . . Shots 9 | . 2 5 2 . . Rammed . | . . . . . . Targets Rammed 3 | 1 . . 2 . . Kicked 3 | 1 . . 2 . . Crushed . | . . . . . . Highest Temperature 567 | . 60 144 402 . 567 Average Temperature 90 | . 21 42 124 . 164 Received Heat Transfer 1554 | . 114 372 684 . 384 Effects 8 | . . . 3 . 5 Shutdowns 2 | . . . . . 2 Interference 2 | . . . 2 . . Matter Decay 1 | . . . 1 . . Damage (minor) 1 | . . . . . 1 Damage (core) 2 | . . . . . 2 Siege Activations . | . . . . . . Martial Activations . | . . . . . . Shielding Activations . | . . . . . . Robots Disrupted . | . . . . . . Combat Hostiles . | . . . . . . Robots Corrupted 1 | . . . 1 . . Combat Hostiles 1 | . . . 1 . . Parts Fried 2 | . . . 2 . . Impact Corruptions . | . . . . . . Robots Melted . | . . . . . . Combat Hostiles . | . . . . . . Parts Melted 1 | . . 1 . . . Heat Transferred 2509 | . 175 1123 841 . 370 Parts Sabotaged . | . . . . . . Parts Stolen . | . . . . . . Parts Stripped . | . . . . . . Power Chain Reactions 2 | . 1 . 1 . . Alert | -11 -10 -9 -8 -7 -7 ------- Run | Yrd Mat Mat Mat Fac DSF Maximum Alert Level 1 | . . . . . 1 Low Security (%) 97 | 100 100 100 100 100 74 Level 1 2 | . . . . . 25 Level 2 . | . . . . . . Level 3 . | . . . . . . Level 4 . | . . . . . . Level 5 . | . . . . . . High Security . | . . . . . . Max Security . | . . . . . . Sterilizations 1 | . . . . . 1 Peak Influence 300 | . 114 163 132 41 300 Initial 63 | . . 42 63 37 28 Average 55 | . 32 77 35 37 114 Influence Increases 1880 | . 403 614 479 4 380 Destroy 0b10 Robot/C 1220 | . 280 340 300 . 300 Destroy 0b10 Robot/NC 80 | . 25 25 30 . . Destroy Leader 284 | . 52 106 76 . 50 Successful Hack 32 | . 4 14 10 4 . Disable Machine 90 | . 30 45 15 . . Destroy Structure 99 | . 12 54 33 . . Lose Combat Pursuer 75 | . . 30 15 . 30 Influence Decreases 1580 | . 301 565 546 47 121 Entered New Map 208 | . . 60 88 47 13 Time Decay 1084 | . 271 455 358 . . Lost Part 288 | . 30 50 100 . 108 Squads Dispatched 11 | . 3 2 2 . 4 Investigation 3 | . 2 1 . . . Extermination . | . . . . . . Reinforcement 7 | . 1 1 1 . 4 Assault . | . . . . . . Garrison 1 | . . . 1 . . Intercept . | . . . . . . Searches Triggered . | . . . . . . Construction Impeded 1 | . . . 1 . . Haulers Reinforced . | . . . . . . Active Scanning Responses . | . . . . . . Cargo Convoy Interrupts . | . . . . . . Stealth | -11 -10 -9 -8 -7 -7 --------- Run | Yrd Mat Mat Mat Fac DSF Distress Signals 6 | . . 5 1 . . Communications Jammed . | . . . . . . Distress Signals . | . . . . . . Times Spotted 96 | . 17 34 26 . 19 Peak Tracking Total 7 | . 4 7 4 . 6 Tactical Retreats 5 | . . 2 1 . 2 Traps | -11 -10 -9 -8 -7 -7 ------- Run | Yrd Mat Mat Mat Fac DSF Traps Triggered 4 | . 1 . . . 3 Indirectly . | . . . . . . Trap Hack Attempts . | . . . . . . Triggered . | . . . . . . Disarmed . | . . . . . . Reprogrammed . | . . . . . . Reused . | . . . . . . Traps Extracted . | . . . . . . Installed . | . . . . . . Triggered . | . . . . . . Machines | -11 -10 -9 -8 -7 -7 ---------- Run | Yrd Mat Mat Mat Fac DSF Machines Disabled 6 | . 2 3 1 . . Max in Single Turn 1 | . 1 1 1 . . Machines Repaired . | . . . . . . Machines Dismantled . | . . . . . . Machines Sabotaged . | . . . . . . Overloaded Fab Kills . | . . . . . . Hacking | -11 -10 -9 -8 -7 -7 --------- Run | Yrd Mat Mat Mat Fac DSF Machines Accessed 8 | . 2 3 2 1 . Terminals 6 | . 2 2 1 1 . Fabricators . | . . . . . . Repair Stations 2 | . . 1 1 . . Recycling Units . | . . . . . . Scanalyzers . | . . . . . . Garrison Access . | . . . . . . Total Hacks 29 | . 7 9 12 1 . Successful 22 | . 4 5 12 1 . Failed 7 | . 3 4 . . . Catastrophic . | . . . . . . Database Lockouts . | . . . . . . Manual . | . . . . . . Terminals 18 | . 7 5 5 1 . Fabricators . | . . . . . . Repair Stations 11 | . . 4 7 . . Recycling Units . | . . . . . . Scanalyzers . | . . . . . . Garrison Access . | . . . . . . Terminal Hacks 11 | . 4 1 5 1 . Record 3 | . . . 3 . . Prototype ID Bank 1 | . . . 1 . . Open DSF 1 | . . . . 1 . Repair Station Index 1 | . . . 1 . . Alert Level 1 | . 1 . . . . Investigation Status 1 | . 1 . . . . Hauler Manifests 2 | . 2 . . . . Registered Components 1 | . . 1 . . . Fabricator Hacks . | . . . . . . Repair Station Hacks 11 | . . 4 7 . . Scan Component 6 | . . 2 4 . . Repair 5 | . . 2 3 . . Recycling Unit Hacks . | . . . . . . Scanalyzer . | . . . . . . Garrison Access Hacks . | . . . . . . Unauthorized Hacks . | . . . . . . Terminals . | . . . . . . Fabricators . | . . . . . . Repair Stations . | . . . . . . Recycling Units . | . . . . . . Scanalyzers . | . . . . . . Garrison Access . | . . . . . . Data Cores Recovered 1 | . . 1 . . . Used . | . . . . . . Hacking Detections 7 | . 2 3 2 . . Full Trace Events 4 | . 2 2 . . . Feedback Events . | . . . . . . Feedback Blocked . | . . . . . . Robot Schematics Acquired . | . . . . . . Robots Built . | . . . . . . Authchips . | . . . . . . Time . | . . . . . . Total Robot Build Rating . | . . . . . . Part Schematics Acquired . | . . . . . . Parts Built . | . . . . . . Authchips . | . . . . . . Time . | . . . . . . Total Part Build Rating . | . . . . . . Parts Repaired 5 | . . 2 3 . . Time 142 | . . 52 90 . . Parts Recycled . | . . . . . . Recycled Matter . | . . . . . . Retrieved Matter . | . . . . . . Retrieved Components . | . . . . . . Parts Scanalyzed . | . . . . . . Part Schematics Acquired . | . . . . . . Parts Damaged . | . . . . . . Bothacking | -11 -10 -9 -8 -7 -7 ------------ Run | Yrd Mat Mat Mat Fac DSF Used RIF Installer . | . . . . . . Robots Hacked . | . . . . . . Non-combat . | . . . . . . Combat . | . . . . . . Robot Hacks Applied . | . . . . . . Relay Couplers Released . | . . . . . . Fabnet Peak Effective % . | . . . . . . Robots Rewired . | . . . . . . Allies Hacked . | . . . . . . Hacks Repelled . | . . . . . . Allies | -11 -10 -9 -8 -7 -7 -------- Run | Yrd Mat Mat Mat Fac DSF Total Allies . | . . . . . . Largest Group . | . . . . . . Highest-Rated Group . | . . . . . . Highest-Rated Ally . | . . . . . . Total Orders . | . . . . . . Ally Attacks . | . . . . . . Total Damage . | . . . . . . Kills . | . . . . . . Allies Corrupted . | . . . . . . Allies Melted . | . . . . . . Intel | -11 -10 -9 -8 -7 -7 ------- Run | Yrd Mat Mat Mat Fac DSF Active Infowar (turns) 1190 | . . . 681 14 495 Optics 1190 | . . . 681 14 495 Robot Analysis Total . | . . . . . . Derelict Logs Recovered . | . . . . . . Drone Launches . | . . . . . . Drone Recoveries . | . . . . . . Exploration | -11 -10 -9 -8 -7 -7 ------------- Run | Yrd Mat Mat Mat Fac DSF Turns Passed 4363 | 104 978 1333 1440 14 494 Spaces Moved 2069 | 85 570 621 618 5 170 Core 37 | 18 . . . . 19 Treads . | . . . . . . Legs 2032 | 67 570 621 618 5 151 Wheels . | . . . . . . Hover . | . . . . . . Flight . | . . . . . . Fastest Speed 50 | 50 120 120 120 190 90 Average Speed 166 | 105 141 173 184 190 192 Slowest Speed 500 | 120 190 260 190 190 500 Overloaded Moves . | . . . . . . Propulsion Burnouts . | . . . . . . Robots Hopped . | . . . . . . Potential Cave-ins . | . . . . . . Cave-ins Triggered . | . . . . . . Exploration Rate (%) 43 | 3 51 39 47 . 78 Regions Visited 5 Branch Regions . Pre-discovered Areas . | . . . . . . Known Exits Taken 1 | . . . . 1 . Unknown Exits Taken 4 | 1 1 1 1 . . Scrap Searched . | . . . . . . Spaces Dug . | . . . . . . Terrain Destroyed 100 | . 11 58 29 . 2 Melee . | . . . . . . Projectile 2 | . . . . . 2 AOE 98 | . 11 58 29 . . Terrain Rammed . | . . . . . . Walls Destroyed . | . . . . . . Machines Disabled . | . . . . . . Actions | -11 -10 -9 -8 -7 -7 --------- Run | Yrd Mat Mat Mat Fac DSF Total 2614 | 99 651 768 832 9 255 Wait 153 | . 4 58 90 . 1 Move 2064 | 84 569 620 617 4 170 Hop . | . . . . . . Pick Up 47 | 8 12 7 19 . 1 Fast Attach 21 | . 1 4 5 . 11 Attach 31 | 6 2 6 9 4 4 Detach 1 | . . . 1 . . Swap 39 | . 4 11 16 1 7 Drop 23 | . 2 6 11 . 4 Fire 216 | . 57 56 62 . 41 Melee . | . . . . . . Ram . | . . . . . . Kick 3 | 1 . . 2 . . Crush . | . . . . . . Escape Stasis 15 | . . . . . 15 Rewire 1 | . . . . . 1 Trap . | . . . . . . Miscellaneous . | . . . . . . Route ------- -11/Scrapyard -10/Materials (discovered 3 exits: *Mat / [*Min] / [*Sub]) -9/Materials -8/Materials -7/Factory -7/DSF (discovered 1 exit: [*Fac]) History --------- Turn | Location | Event 10 | -11/Scrapyard | Discovered new exit (range 15) 105 | -11/Scrapyard | Entered Materials 106 | -10/Materials | Met a group of wandering Federalists 146 | -10/Materials | Discovered new exit (range 15) 254 | -10/Materials | Discovered new exit (range 11) 315 | -10/Materials | Build established: Mutant 433 | -10/Materials | Discovered new exit (range 6) 1083 | -10/Materials | Entered another Materials area 1083 | -9/Materials | Evolved 2 slots: Propulsion x1, Utility x1 1253 | -9/Materials | Build established: Scavenger-Mutant 1347 | -9/Materials | Lost 4 parts (2n2w) 1495 | -9/Materials | Discovered new exit (range 16) 1617 | -9/Materials | Repaired Lgt. Cannon 1650 | -9/Materials | Repaired Aluminum Leg 2335 | -9/Materials | Build established: Mutant 2416 | -9/Materials | Entered another Materials area 2416 | -8/Materials | Evolved 2 slots: Power x1, Utility x1 2635 | -8/Materials | Garrison activated, responded to threat 2713 | -8/Materials | Lost 5 parts (2p1n2w) 2778 | -8/Materials | Repaired Carbon-fiber Leg 2806 | -8/Materials | Repaired Aluminum Leg 2833 | -8/Materials | Repaired Aluminum Leg 3000 | -8/Materials | Build established: Scavenger-Mutant 3748 | -8/Materials | Discovered new exit (range 20) 3856 | -8/Materials | Entered Factory 3856 | -7/Factory | Evolved 2 slots: Utility x1, Weapon x1 3868 | -7/Factory | Identified exit to DSF 3870 | -7/Factory | Entered DSF 3910 | -7/DSF | Additional patrols routed to DSF 3998 | -7/DSF | Lost 10 parts (2p4n1u3w) 4062 | -7/DSF | Core integrity fell below 50% 4221 | -7/DSF | Core integrity fell below 20% 4241 | -7/DSF | Sterilization system engaged 4261 | -7/DSF | Ambient heat levels rising (+10) 4261 | -7/DSF | Destroyed 7 combat bots 4276 | -7/DSF | Ambient heat levels rising (+10) 4291 | -7/DSF | Ambient heat levels rising (+10) 4306 | -7/DSF | Ambient heat levels rising (+10) 4321 | -7/DSF | Ambient heat levels rising (+10) 4336 | -7/DSF | Ambient heat levels rising (+10) 4341 | -7/DSF | Discovered new exit (range 16) 4351 | -7/DSF | Ambient heat levels rising (+10) 4365 | -7/DSF | Core destroyed Last Messages --------------- 04346_ A-02 Transporter heat spikes uncontrollably. 04349_ A-02 Transporter heat damages Med. Storage Unit, Weight Redist. System, Ion Engine, Lgt. Treads. 04351_ ALERT: Ambient heat levels +10. 04352_ Dropped VSS Leg. 04353_ Dropped Trap Scanner. 04353_ Dropped Sml. Laser. 04354_ Power failure, Rnf. Deuterium Engine shutdown. 04355_ Power failure, Nuclear Core shutdown. 04355_ A-02 Transporter heat damages Weight Redist. System. 04356_ A-02 Transporter heat damages Ion Engine. 04357_ Overheating: Lrg. Storage Unit damaged (-64). 04357_ A-02 Transporter heat damages Weight Redist. System. 04358_ A-02 Transporter heat damages Lgt. Treads, Med. Storage Unit. 04359_ System corrupted: Component data lost. 04360_ A-02 Transporter heat damages Lgt. Treads. 04360_ Acquired Insulated Plating. 04361_ A-02 Transporter heat spikes uncontrollably. 04364_ Overheating: Core damaged (-84). 04365_ Overheating: Core damaged (-77). Map ----- +----------------------------------------------------+ | | | | | | | | | | | ?????????????????????????????????? | | ?????????????????????????????????? | | ?????????????????????????????????? | | ?????????????????????????????????? | | ?????????????????????????????????? | | ?????????????????????????????????? | | ?????????#"#?????????????????????? | | ????????""""#???????????[[*??????? | | ????????""""???????????[[[*??????? | | ????????"< ??????????? ??????? | | ????????" ??????????? ??????? | | ????????"% ??????????? #??????? | | ????????# #??????????? ##?????? | | ????????# ##?????????? ?????? | | ????????! !??????????? ??????? | | ????????! !??????????? ??????? | | ???????## ###????????# ###????? | | ???????#! !!#????????] !!#????? | | ???????#! !!#????????] !!#????? | | ???????#! !!#????????] !!?????? | | ??????###@ ##########?# #?###### | | ??????#!![ ## #!!!### ###!!!#! | | ??????#! =!## #!!!##% ##!!!#! | | ??????#!!= =^ == =^] | | ??????#!! % ^%[^^^!! | | ??????#!! ! !*[^=!* | | ??????# ## #!!!##[[%!=##!!!#! | | ??????# ## #!!!###*!%##?!!!#? | | ??????################# [!####+#?? | | ????????????????????#!! !%!!## ### | | ????????????????????#!! %=!!## ! | | ????????????????????#!! [[!!##!!!# | | ????????????????????##= [#### # | | ????????????????????# ## ### | | ????????????????????# ##%#?? | | ????????????????????# ! =#"### | | ????????????????????### %["=!!!#! | | ????????????????????##" % "#"!!!#! | | ????????????????????# % [ | | ????????????????????# % % | | ????????????????????# !!!==# #! | | ????????????????????# !!!==###### | | ????????????????????#####%""#????? | | ????????????????????????# ###????? | | ????????????????????????###??????? | +----------------------------------------------------+ Best States ------------- Heat Dissipation 53 Energy Generation 25 Energy Capacity 590 Matter Stores 300 Matter Capacity 300 Sight Range 20 Terrain Scan Density 10 Armor Coverage 150 Propulsion Shielding 66 Utility Shielding 33 Evasion (%) 55 Core Analysis 6 Particle Charging 15 Offensive Hacking 10 Defensive Hacking 10 Item Schematics ----------------- None Robot Schematics ------------------ None Fabricated ------------ Nothing Repaired ---------- Lgt. Cannon | 31% | -9/Materials Aluminum Leg | 46% | -9/Materials Carbon-fiber Leg | 11% | -8/Materials Aluminum Leg | 14% | -8/Materials Aluminum Leg | 17% | -8/Materials Alien Tech Used ----------------- None Achievements -------------- Please Form A Line Serviceable Loadout Challenges ------------ None Game ------ Seed TeslaGravitonShielding Manual? 0 Play Time 00:55:11 Cumulative 4.0 hours Start 2025.09.23 @ 22:18:53 End 2025.09.23 @ 23:15:58 Sessions 1 Manual Loads 0 Difficulty Rogue Special Mode None Game No. 7 Rogue 7 Adventurer 0 Explorer 0 Win Type - Total 0 Types 0/0/0/0/0/0/0/0/0/0 Lore% 0 Gallery% 8 Achievement% 8 Wizard Run 0 Options --------- Layout 0 ASCII 0 Keyboard 1 Movement Arrows Keybinds 0 Fullscreen 1 Font 24/Smallcaps Map View 76x50 Zoom Use 0% Tactical HUD 1 Map Filters NONE Filters NONE Steam 1 RUN: 9458d528-ffb8-41ed-bdcd-01397a2f113b